bitfinex/quotes_BTCUSD_20250508
["timestamp","ask_amount","ask_price","bid_price","bid_amount"]
[1746694625300,0.01002657,99735.0,99732.0,0.01002687]
[1746694625547,0.20052932,99737.0,99732.0,0.38202687]
[1746694625945,0.01002657,99735.0,99732.0,0.372]
[1746694626574,0.01002657,99735.0,99732.0,0.032]
[1746694626977,0.01002657,99735.0,99730.0,0.35102707]
[1746694627121,0.21056008,99734.0,99730.0,0.35102707]
[1746694627756,0.21056008,99734.0,99730.0,0.35002707]
[1746694627965,0.21056008,99734.0,99732.0,0.001]
[1746694628504,0.21056008,99734.0,99730.0,0.35002707]
[1746694628829,0.01002677,99733.0,99730.0,0.35102707]
[1746694629393,0.20053744,99732.0,99730.0,0.001]
[1746694629810,0.21056431,99732.0,99729.0,0.4]
[1746694629985,0.01002687,99732.0,99729.0,0.4]
[1746694630196,0.20053945,99731.0,99729.0,0.4]
[1746694630405,0.01002687,99732.0,99729.0,0.06]
[1746694630591,0.21056484,99732.0,99729.0,0.06]
[1746694631096,0.01002677,99733.0,99729.0,0.41002717]
[1746694631295,0.01002677,99733.0,99732.0,0.001]
[1746694631718,0.2105541,99737.0,99732.0,0.34]
[1746694632055,0.01002657,99735.0,99731.0,0.01002697]
[1746694632258,0.01002667,99734.0,99730.0,0.01002707]
[1746694632468,0.21056207,99734.0,99730.0,0.01002707]
[1746694632825,0.21056207,99734.0,99732.0,0.001]
[1746694633051,0.01002677,99733.0,99732.0,0.001]
[1746694634391,0.01002677,99733.0,99730.0,0.01002707]
[1746694634593,0.01002677,99733.0,99729.0,0.41002717]
[1746694634731,0.01002677,99733.0,99730.0,0.001]
[1746694635039,0.01002677,99733.0,99729.0,0.07002717]
[1746694635479,0.01002677,99733.0,99732.0,0.001]
[1746694635986,0.01002677,99733.0,99730.0,0.01002707]
[1746694637310,0.01002687,99732.0,99729.0,0.41202717]
[1746694637456,0.20053945,99731.0,99729.0,0.4]
[1746694638785,0.20053945,99731.0,99729.0,0.402]
[1746694638984,0.20053945,99731.0,99729.0,0.062]
[1746694642033,0.01002687,99732.0,99729.0,0.062]
[1746694642390,0.20053945,99731.0,99729.0,0.062]
[1746694644353,0.20053945,99731.0,99729.0,0.06]
[1746694644735,0.20053945,99731.0,99729.0,0.062]
[1746694645171,0.20053945,99731.0,99729.0,0.06]
[1746694645571,0.21663945,99731.0,99729.0,0.002]
[1746694645742,0.0161,99730.0,99729.0,0.002]
[1746694645943,0.0161,99730.0,99729.0,1.010315]
[1746694646670,0.0161,99730.0,99729.0,0.342]
[1746694646883,0.0161,99730.0,99729.0,1.010315]
[1746694647388,0.0161,99730.0,99729.0,1.008315]
[1746694647545,0.20053945,99731.0,99729.0,1.010315]
[1746694647738,0.20153945,99731.0,99729.0,0.343]
[1746694648336,0.001,99730.0,99729.0,0.344]
[1746694648597,0.001,99730.0,99729.0,2.505488]
[1746694648746,0.20053945,99731.0,99729.0,2.486422]
[1746694649094,0.20153945,99731.0,99729.0,0.343]
[1746694649326,0.001,99731.0,99730.0,0.20054146]
[1746694649659,0.001,99731.0,99730.0,4.90194673]
[1746694649866,0.01002606,99740.0,99736.0,0.01002646]
[1746694650279,0.01002616,99739.0,99736.0,0.01002646]
[1746694651750,0.01102616,99739.0,99736.0,0.01002646]
[1746694652169,0.01102616,99739.0,99735.0,0.20053001]
[1746694652170,0.01002626,99738.0,99735.0,0.20053001]
[1746694652567,0.01002626,99738.0,99734.0,0.01002667]
[1746694652970,0.01006616,99739.0,99735.0,0.01002657]
[1746694653305,0.01002626,99738.0,99734.0,0.01002667]
[1746694653505,0.01002636,99737.0,99734.0,0.01002667]
[1746694654429,0.01002636,99737.0,99735.0,0.001]
[1746694654824,0.01002636,99737.0,99734.0,0.01002667]
[1746694657488,0.0316,99730.0,99729.0,0.34]
[1746694658245,0.0316,99730.0,99729.0,1.013509]
[1746694658451,0.22627064,99729.0,99726.0,1.014512]
[1746694658676,0.0165,99728.0,99726.0,1.014512]
[1746694659075,0.0165,99728.0,99726.0,0.979391]
[1746694659278,0.20054749,99727.0,99726.0,0.982401]
[1746694660054,0.20054749,99727.0,99726.0,0.983401]
[1746694660255,0.20054749,99727.0,99726.0,0.982401]
[1746694660690,0.20054749,99727.0,99726.0,1.324401]
[1746694660691,0.20058749,99727.0,99726.0,1.324401]
[1746694661325,0.20058749,99727.0,99726.0,0.34]
[1746694661603,0.20058749,99727.0,99725.0,0.002]
[1746694661604,0.0322,99726.0,99725.0,0.002]
[1746694661813,0.03924739,99726.0,99725.0,0.002]
[1746694662434,0.03928739,99726.0,99725.0,0.002]
[1746694662835,0.04028739,99726.0,99725.0,0.00208725]
[1746694663035,0.03928739,99726.0,99725.0,0.00208725]
[1746694663593,0.04028739,99726.0,99725.0,0.00208725]
[1746694664356,0.04028739,99726.0,99725.0,0.00308725]
[1746694664762,0.04028739,99726.0,99725.0,0.00208725]
[1746694664994,0.14095431,99726.0,99725.0,0.00308725]
[1746694665555,0.13995431,99726.0,99725.0,0.00308725]
[1746694666026,0.14095431,99726.0,99725.0,0.00308725]
[1746694666360,0.14095431,99726.0,99725.0,0.00208725]
[1746694666557,0.15549516,99726.0,99725.0,0.00208725]
[1746694667841,0.15649516,99726.0,99725.0,0.00208725]
[1746694668390,0.14844777,99726.0,99725.0,0.00208725]
[1746694668592,0.14944777,99726.0,99725.0,0.00208725]
[1746694670199,0.15648559,99726.0,99725.0,0.00208725]
[1746694670394,0.23531332,99726.0,99725.0,0.00208725]
[1746694670570,0.15648559,99726.0,99725.0,0.00208725]
[1746694677102,0.14944777,99726.0,99725.0,0.00208725]
[1746694681919,0.15648355,99726.0,99725.0,0.00208725]
[1746694684579,0.15498355,99726.0,99725.0,0.00208725]
[1746694684742,0.1097427,99726.0,99725.0,0.00208725]
[1746694685343,0.1097427,99726.0,99716.0,0.2489074]
[1746694685344,0.21059625,99717.0,99716.0,0.2489074]
[1746694685551,0.21059625,99717.0,99716.0,0.016596]
[1746694685749,0.01002827,99718.0,99716.0,0.016596]
[1746694685973,0.20056559,99718.0,99717.0,0.016]
[1746694686762,0.01002787,99722.0,99717.0,0.02652838]
[1746694686961,0.01002767,99724.0,99719.0,0.01002817]
[1746694687190,0.01002777,99723.0,99720.0,0.01002807]
[1746694687395,0.01002777,99723.0,99721.0,0.0165]
[1746694687693,0.21058374,99723.0,99721.0,0.0165]
[1746694688108,0.01002767,99724.0,99722.0,0.0165]
[1746694688324,0.01002757,99725.0,99723.0,0.0151]
[1746694688500,4e-05,99724.0,99723.0,0.0151]
[1746694689427,4e-05,99724.0,99723.0,0.21565553]
[1746694690191,4e-05,99724.0,99723.0,0.0151]
[1746694690420,8e-05,99724.0,99723.0,0.0151]
[1746694691156,8e-05,99724.0,99723.0,0.23065553]
[1746694691353,0.00108,99724.0,99723.0,4.91475553]
[1746694691793,0.00108,99724.0,99723.0,5.31475553]
[1746694692175,8e-05,99724.0,99723.0,5.31475553]
[1746694692371,8e-05,99724.0,99723.0,5.31575553]
[1746694692572,0.00108,99724.0,99723.0,5.31575553]
[1746694694106,0.00108,99724.0,99723.0,9.87773853]
[1746694694311,0.00108,99724.0,99723.0,9.87874253]
[1746694698956,0.00626646,99736.0,99733.0,0.01002677]
[1746694699382,4e-05,99737.0,99734.0,0.21056008]
[1746694699577,4e-05,99737.0,99735.0,0.4]
[1746694700850,0.001,99736.0,99735.0,0.4]
[1746694701281,0.002,99736.0,99735.0,0.4]
[1746694701730,0.001,99736.0,99735.0,0.4]
[1746694701917,4e-05,99737.0,99735.0,0.4]
[1746694702293,0.002,99736.0,99735.0,0.4]
[1746694702915,0.001,99736.0,99735.0,0.4]
[1746694704330,4e-05,99737.0,99735.0,0.4]
[1746694704526,0.00104,99737.0,99735.0,0.401]
[1746694704707,0.00204,99737.0,99735.0,0.60052941]
[1746694704923,0.00204,99737.0,99735.0,0.4]
[1746694705127,0.001,99736.0,99735.0,0.401]
[1746694705366,0.00104,99737.0,99735.0,0.4]
[1746694705870,0.00204,99737.0,99735.0,0.401]
[1746694706091,0.00104,99737.0,99735.0,0.401]
[1746694706295,0.20156766,99737.0,99735.0,0.401]
[1746694706420,0.001,99736.0,99735.0,0.401]
[1746694706833,0.002,99736.0,99735.0,0.401]
[1746694707039,0.002,99736.0,99735.0,0.4]
[1746694707249,0.003,99736.0,99735.0,0.401]
[1746694708051,0.003,99736.0,99735.0,0.001]
[1746694708442,0.002,99736.0,99735.0,0.001]
[1746694709456,0.003,99736.0,99735.0,0.001]
[1746694713361,0.003,99736.0,99735.0,0.2015314]
[1746694713520,0.003,99736.0,99735.0,0.5415314]
[1746694716879,0.003,99736.0,99735.0,5.3341784]
[1746694717083,0.002,99745.0,99744.0,0.55551331]
[1746694717485,0.002,99745.0,99744.0,10.11967531]
[1746694717686,0.002,99745.0,99744.0,9.68424431]
[1746694717858,0.002,99745.0,99744.0,9.66924431]
[1746694718262,0.002,99745.0,99744.0,9.67124431]
[1746694718504,0.003,99745.0,99744.0,9.67224431]
[1746694720407,0.003,99745.0,99744.0,10.07224431]
[1746694721331,0.003,99745.0,99744.0,10.07024431]
[1746694721733,0.002,99745.0,99744.0,10.07124431]
[1746694721971,0.003,99745.0,99744.0,10.07424431]
[1746694724314,0.003,99745.0,99744.0,0.94551331]
[1746694724488,0.003,99745.0,99744.0,10.62961331]
[1746694732056,0.003,99745.0,99744.0,10.4291]
[1746694732247,0.019,99745.0,99744.0,9.2828]
[1746694732599,0.019,99745.0,99744.0,9.48331331]
[1746694732909,0.003,99745.0,99744.0,9.48331331]
[1746694735053,0.003,99745.0,99744.0,5.62961331]
[1746694735245,0.003,99745.0,99744.0,5.94551331]
[1746694735608,0.003,99745.0,99744.0,0.94551331]
[1746694735907,0.003,99745.0,99744.0,10.62961331]
[1746694738451,0.004,99745.0,99744.0,10.62961331]
[1746694740695,0.004,99745.0,99744.0,10.59661331]
[1746694741013,0.004,99745.0,99744.0,10.39711331]
[1746694741169,0.0194,99745.0,99744.0,10.39711331]
[1746694741371,0.0194,99745.0,99744.0,9.20211331]
[1746694741605,0.0194,99745.0,99744.0,8.92831331]
[1746694742013,0.0194,99745.0,99744.0,8.73961331]
[1746694743045,0.0194,99745.0,99744.0,8.59371331]
[1746694743465,0.0194,99745.0,99744.0,8.3932]
[1746694743668,0.0346,99745.0,99744.0,5.745]
[1746694744745,0.0346,99745.0,99744.0,5.405]
[1746694745305,0.0346,99745.0,99744.0,5.005]
[1746694746962,0.0346,99745.0,99744.0,5.345]
[1746694747388,0.0346,99745.0,99744.0,0.005]
[1746694747389,0.19737953,99745.0,99744.0,0.005]
[1746694748183,0.19737953,99745.0,99744.0,0.003]
[1746694748389,0.19737953,99745.0,99744.0,0.005]
[1746694748994,0.21056012,99734.0,99730.0,0.1162037]
[1746694749194,0.21056012,99734.0,99726.0,0.27119817]
[1746694749195,0.02532717,99729.0,99726.0,0.07065022]
[1746694749375,0.0153,99728.0,99726.0,0.07065022]
[1746694749590,0.02622717,99729.0,99725.0,0.01002757]
[1746694749785,0.0153,99728.0,99725.0,0.01002757]
[1746694750006,0.0153,99726.0,99724.0,0.01002767]
[1746694750173,0.0165,99726.0,99725.0,2.754644]
[1746694750570,0.0165,99726.0,99724.0,0.01002767]
[1746694750791,0.0165,99726.0,99725.0,2.7707]
[1746694750991,0.0165,99726.0,99725.0,2.712497]
[1746694751167,0.001,99728.0,99725.0,2.91304656]
[1746694751371,0.001,99728.0,99725.0,0.21057713]
[1746694751721,0.01102727,99728.0,99725.0,0.01002757]
[1746694752335,0.01002727,99728.0,99725.0,0.01002757]
[1746694752936,0.001,99726.0,99725.0,0.01202757]
[1746694753131,0.001,99726.0,99725.0,3.81935657]
[1746694753538,0.22587285,99728.0,99725.0,3.81735657]
[1746694753718,0.22687285,99728.0,99725.0,0.01202757]
[1746694754128,0.01002737,99727.0,99724.0,0.01002767]
[1746694754330,0.22587308,99728.0,99725.0,4.018066]
[1746694754535,0.2005495,99726.0,99725.0,4.00201]
[1746694754758,0.01002757,99725.0,99721.0,0.4]
[1746694754912,0.20055553,99723.0,99722.0,3.540394]
[1746694755112,0.23215553,99723.0,99722.0,2.269947]
[1746694755344,0.23215553,99723.0,99722.0,0.526846]
[1746694755521,0.01002797,99721.0,99719.0,0.34]
[1746694755744,0.0159,99720.0,99719.0,0.34]
[1746694757330,0.0169,99720.0,99719.0,1.007332]
[1746694757864,0.0169,99720.0,99719.0,0.975219]
[1746694758022,0.0169,99720.0,99719.0,0.977219]
[1746694758942,0.0179,99720.0,99719.0,0.977219]
[1746694759151,0.0179,99720.0,99719.0,1.377219]
[1746694761918,0.0179,99720.0,99719.0,0.910586]
[1746694762686,0.0335,99720.0,99719.0,0.910586]
[1746694763951,0.0335,99720.0,99719.0,0.170586]
[1746694767837,0.0335,99720.0,99719.0,0.004]
[1746694768039,0.07996984,99720.0,99719.0,0.004]
[1746694768616,0.0335,99720.0,99719.0,0.004]
[1746694768815,0.13416692,99720.0,99719.0,0.002]
[1746694769019,0.13316692,99720.0,99719.0,0.002]
[1746694769223,0.13416692,99720.0,99719.0,0.003]
[1746694769427,0.13416692,99720.0,99719.0,0.001]
[1746694770205,0.19070345,99720.0,99719.0,0.001]
[1746694773323,0.13416692,99720.0,99719.0,0.001]
[1746694775665,0.20057766,99712.0,99710.0,0.1162037]
[1746694775877,5.924e-05,99712.0,99708.0,0.01002928]
[1746694776081,5.924e-05,99712.0,99711.0,0.21697967]
[1746694776255,5.924e-05,99712.0,99711.0,9.90107967]
[1746694776648,5.924e-05,99712.0,99711.0,10.30107967]
[1746694776849,5.924e-05,99712.0,99711.0,10.07427967]
[1746694777031,0.00105924,99712.0,99711.0,10.07427967]
[1746694777262,0.00105924,99712.0,99711.0,3.93420067]
[1746694777493,0.00105924,99712.0,99711.0,3.65422267]
[1746694777685,0.00105924,99712.0,99711.0,2.25287467]
[1746694777891,0.00105924,99712.0,99711.0,2.20308167]
[1746694778092,5.924e-05,99712.0,99711.0,2.20308167]
[1746694778376,0.00105924,99712.0,99711.0,2.20408167]
[1746694778818,0.00105924,99712.0,99711.0,1.77177367]
[1746694778993,0.00105924,99712.0,99711.0,1.77277367]
[1746694780804,0.00105924,99712.0,99711.0,6.45687367]
[1746694781601,0.00105924,99712.0,99711.0,3.22827367]
[1746694781812,0.00205924,99712.0,99711.0,2.45337367]
[1746694789486,0.00205924,99712.0,99711.0,2.45737702]
[1746694791515,0.00205924,99712.0,99711.0,2.05737702]
[1746694792450,0.00205924,99712.0,99711.0,2.45737702]
[1746694795614,0.00205924,99712.0,99711.0,0.60658302]
[1746694795868,0.00205924,99712.0,99711.0,6.49731702]
[1746694796010,0.00205924,99712.0,99711.0,6.38571702]
[1746694796214,0.00205924,99712.0,99711.0,6.32391702]
[1746694796467,0.00205924,99712.0,99711.0,4.88839502]
[1746694796967,0.00205924,99712.0,99711.0,4.62959502]
[1746694797692,0.00205924,99712.0,99711.0,4.46649502]
[1746694797843,0.00205924,99712.0,99711.0,4.45229502]
[1746694798772,0.00205924,99712.0,99711.0,3.15665602]
[1746694801035,0.00205924,99712.0,99711.0,3.17245602]
[1746694801612,0.00205924,99712.0,99711.0,3.18815602]
[1746694802134,0.00105924,99712.0,99711.0,3.18615602]
[1746694802336,0.00105924,99712.0,99711.0,3.18915602]
[1746694802545,0.00205924,99712.0,99711.0,3.19015602]
[1746694802966,0.00205924,99712.0,99711.0,3.18715602]
[1746694803178,0.00205924,99712.0,99711.0,3.19651635]
[1746694803389,0.00205924,99712.0,99711.0,3.19951635]
[1746694804108,0.20052159,99740.0,99711.0,3.19951635]
[1746694804109,0.65290786,99741.0,99740.0,0.20052135]
[1746694804311,0.63730786,99741.0,99740.0,0.20052135]
[1746694804450,0.63776187,99741.0,99740.0,5.20052135]
[1746694804651,0.63776187,99741.0,99740.0,5.0]
[1746694804943,0.63776187,99741.0,99739.0,5.0]
[1746694805116,0.63776187,99741.0,99740.0,0.20052135]
[1746694805317,0.64076187,99741.0,99740.0,5.20052135]
[1746694805657,0.64476187,99741.0,99740.0,9.90082135]
[1746694805810,0.00445401,99741.0,99740.0,9.90082135]
[1746694806015,0.00445401,99741.0,99740.0,10.24082135]
[1746694806218,0.00445401,99741.0,99740.0,10.25582135]
[1746694806384,0.00045401,99741.0,99740.0,0.6025465]
[1746694806584,0.00045401,99741.0,99740.0,9.64012635]
[1746694806807,0.00345401,99741.0,99740.0,10.23982135]
[1746694807592,0.00445401,99741.0,99740.0,10.24182135]
[1746694807941,0.00145401,99741.0,99740.0,10.24182135]
[1746694808142,0.00045401,99741.0,99740.0,10.23982135]
[1746694808544,0.00045401,99741.0,99740.0,10.24182135]
[1746694808746,0.00145401,99741.0,99740.0,10.24482135]
[1746694808921,0.00145401,99741.0,99740.0,10.64482135]
[1746694810541,0.00145401,99741.0,99740.0,10.62962135]
[1746694810889,0.00145401,99741.0,99740.0,10.26466435]
[1746694812714,0.00145401,99741.0,99740.0,10.06100735]
[1746694813319,0.00145401,99741.0,99740.0,9.58746235]
[1746694814709,0.00145401,99741.0,99740.0,9.4342835]
[1746694814936,0.00145401,99741.0,99740.0,9.3770865]
[1746694815139,0.20050326,99749.0,99748.0,0.34]
[1746694815338,0.20050326,99749.0,99740.0,0.00510923]
[1746694815339,0.23261934,99741.0,99740.0,0.00510923]
[1746694815936,0.23261934,99741.0,99740.0,0.00210923]
[1746694816122,0.23261934,99741.0,99740.0,0.00010923]
[1746694817047,0.23361934,99741.0,99740.0,0.00210923]
[1746694818026,0.23361934,99741.0,99740.0,0.00598709]
[1746694818223,0.23361934,99741.0,99740.0,0.00310923]
[1746694818426,0.23361934,99741.0,99740.0,0.00698115]
[1746694818625,0.23361934,99741.0,99740.0,0.00310923]
[1746694818832,0.23361934,99741.0,99740.0,0.00698511]
[1746694818944,0.23361934,99741.0,99740.0,0.00310923]
[1746694819145,0.23361934,99741.0,99740.0,0.00697126]
[1746694819342,0.23361934,99741.0,99740.0,0.00310923]
[1746694819848,0.23361934,99741.0,99740.0,0.00698313]
[1746694820463,0.017,99741.0,99740.0,0.34310923]
[1746694820976,0.017,99741.0,99740.0,0.34697126]
[1746694822890,0.0322,99741.0,99740.0,0.34697126]
[1746694823090,0.017,99741.0,99740.0,0.34697126]
[1746694826940,0.017,99741.0,99740.0,0.00697126]
[1746694827587,0.017,99741.0,99740.0,0.20749261]
[1746694829436,0.018,99741.0,99740.0,0.20749261]
[1746694830509,0.018,99741.0,99740.0,0.00697126]
[1746694830658,0.018,99741.0,99740.0,0.00310923]
[1746694831048,0.01794994,99741.0,99740.0,0.00310923]
[1746694831468,0.03404994,99741.0,99740.0,0.00310923]
[1746694839420,0.2012834,99741.0,99740.0,0.00310923]
[1746694839935,0.21582425,99741.0,99740.0,0.00310923]
[1746694840439,0.21582425,99741.0,99740.0,0.00210923]
[1746694840659,0.21782425,99741.0,99740.0,0.00210923]
[1746694841168,0.21682425,99741.0,99740.0,0.00010923]
[1746694841347,0.21882425,99741.0,99740.0,0.00110923]
[1746694841556,0.15225771,99741.0,99740.0,0.00110923]
[1746694853150,0.15225771,99741.0,99725.0,0.002]
[1746694853151,0.24749035,99726.0,99725.0,0.002]
[1746694853336,0.98546513,99726.0,99725.0,0.00245401]
[1746694854621,0.98646513,99726.0,99725.0,0.00345401]
[1746694854748,1.08713205,99726.0,99725.0,0.00345401]
[1746694855146,1.08913205,99726.0,99725.0,0.00345401]
[1746694858643,1.1078598,99726.0,99725.0,0.00345401]
[1746694859046,1.1058598,99726.0,99725.0,0.00345401]
[1746694859348,1.1078598,99726.0,99725.0,0.00245401]
[1746694859550,1.1098598,99726.0,99725.0,0.00245401]
[1746694860306,1.1078598,99726.0,99725.0,0.00245401]
[1746694860662,1.09013205,99726.0,99725.0,0.00245401]
[1746694860837,1.08713205,99726.0,99725.0,0.00245401]
[1746694861202,1.08813205,99726.0,99725.0,0.00945401]
[1746694867861,0.98746513,99726.0,99725.0,0.00945401]
[1746694867980,1.00617371,99726.0,99725.0,0.00945401]
[1746694868997,0.98746513,99726.0,99725.0,0.00945401]
[1746694871894,1.00618026,99726.0,99725.0,0.00945401]
[1746694872836,1.00518026,99726.0,99725.0,0.00945401]
[1746694873045,1.10584718,99726.0,99725.0,0.00945401]
[1746694873449,1.1339261,99726.0,99725.0,0.00945401]
[1746694873697,1.1339261,99726.0,99725.0,0.00245401]
[1746694873830,1.4739261,99726.0,99725.0,0.00245401]
[1746694874030,1.4749261,99726.0,99725.0,0.00845401]
[1746694875323,1.4739261,99726.0,99725.0,0.00245401]
[1746694875565,1.4729261,99726.0,99725.0,0.00245401]
[1746694876626,1.4739261,99726.0,99725.0,0.00245401]
[1746694876923,1.4759261,99726.0,99725.0,0.00538374]
[1746694885953,1.45721097,99726.0,99725.0,0.00538374]
[1746694886161,1.52600072,99726.0,99725.0,0.00538374]
[1746694887558,1.47600072,99726.0,99725.0,0.00538374]
[1746694891624,1.43836495,99726.0,99725.0,0.00538374]
[1746694891849,1.4195752,99726.0,99725.0,0.00538374]
[1746694892496,1.43836859,99726.0,99725.0,0.00538374]
[1746694892699,1.33770167,99726.0,99725.0,0.00538374]
[1746694892906,1.32180167,99726.0,99725.0,0.00538374]
[1746694893121,1.33800167,99726.0,99725.0,0.00538374]
[1746694898579,0.95076082,99726.0,99725.0,0.00538374]
[1746694898801,0.95076082,99726.0,99725.0,0.02148374]
[1746694899031,0.28537404,99726.0,99725.0,0.03768374]
[1746694899461,0.29991489,99726.0,99725.0,0.03768374]
[1746694899683,0.37202016,99726.0,99725.0,0.00538374]
[1746694900102,0.20057162,99715.0,99714.0,0.0151]
[1746694900327,0.31126712,99715.0,99714.0,0.03190993]
[1746694900745,0.33006051,99715.0,99714.0,0.03190993]
[1746694901175,0.33006051,99715.0,99714.0,0.01640993]
[1746694901407,0.33406051,99715.0,99714.0,0.01740993]
[1746694902454,0.33706051,99715.0,99714.0,0.01740993]
[1746694903359,0.24577756,99715.0,99714.0,0.03270993]
[1746694903576,0.04520594,99715.0,99714.0,0.03270993]
[1746694904025,0.04520594,99715.0,99714.0,0.03712429]
[1746694904233,0.04520594,99715.0,99714.0,0.03270993]
[1746694904234,0.01702858,99715.0,99714.0,0.03270993]
[1746694904987,0.1176955,99715.0,99714.0,0.01740993]
[1746694905868,0.1186955,99715.0,99714.0,0.01740993]
[1746694907959,0.31926712,99715.0,99714.0,0.01740993]
[1746694908368,0.31926712,99715.0,99714.0,0.00110993]
[1746694910297,0.31926712,99715.0,99714.0,0.01690993]
[1746694910811,0.31926712,99715.0,99714.0,0.00110993]
[1746694913060,0.41236585,99715.0,99714.0,0.00110993]
[1746694914666,1.00191583,99715.0,99714.0,0.00110993]
[1746694915251,1.03005097,99715.0,99714.0,0.00110993]
[1746694916244,1.02305097,99715.0,99714.0,0.00010993]
[1746694916710,1.02505097,99715.0,99714.0,0.00710993]
[1746694917134,1.02405097,99715.0,99714.0,0.00110993]
[1746694917302,1.09658275,99715.0,99714.0,0.00110993]
[1746694917463,1.09658275,99715.0,99714.0,0.00610993]
[1746694917812,1.12471919,99715.0,99714.0,0.00610993]
[1746694918250,1.09658275,99715.0,99714.0,0.00610993]
[1746694918463,1.12471968,99715.0,99714.0,0.00610993]
[1746694919158,1.02405276,99715.0,99714.0,0.00610993]
[1746694920746,1.00845276,99715.0,99714.0,0.00610993]
[1746694921448,0.96511583,99715.0,99714.0,0.00610993]
[1746694929407,0.99671583,99715.0,99714.0,0.00610993]
[1746694929759,0.98011583,99715.0,99714.0,0.00610993]
[1746694929964,1.08078275,99715.0,99714.0,0.00610993]
[1746694930762,1.09578275,99715.0,99714.0,0.00610993]
[1746694931198,1.08078275,99715.0,99714.0,0.00610993]
[1746694932959,0.98011583,99715.0,99714.0,0.00610993]
[1746694934410,1.00827931,99715.0,99714.0,0.00610993]
[1746694935680,0.98011583,99715.0,99714.0,0.00610993]
[1746694936236,0.20061991,99691.0,99690.0,0.09116516]
[1746694936443,0.20061991,99691.0,99690.0,0.02109448]
[1746694937674,0.20161991,99691.0,99690.0,0.02109448]
[1746694937898,0.20261991,99691.0,99690.0,0.02209448]
[1746694938686,0.20261991,99691.0,99690.0,0.01761822]
[1746694939333,0.20261991,99691.0,99690.0,0.00559052]
[1746694940619,0.20261991,99691.0,99690.0,0.00111822]
[1746694940780,0.20261991,99691.0,99690.0,0.03401822]
[1746694941803,0.20261991,99691.0,99690.0,0.03832146]
[1746694942930,0.20261991,99691.0,99690.0,0.03383728]
[1746694943153,0.20261991,99691.0,99690.0,0.00093728]
[1746694943315,0.23857011,99691.0,99690.0,0.00093728]
[1746694944071,0.20361991,99691.0,99690.0,0.00093728]
[1746694944602,0.2224188,99691.0,99690.0,0.00093728]
[1746694946046,0.2224188,99691.0,99690.0,0.00548026]
[1746694946190,0.2224188,99691.0,99690.0,0.00093728]
[1746694946394,0.20361991,99691.0,99690.0,0.00548819]
[1746694946660,0.20361991,99691.0,99690.0,0.00093728]
[1746694947018,0.20361991,99691.0,99690.0,0.00548819]
[1746694948063,0.2460546,99691.0,99690.0,0.00548819]
[1746694948271,0.20361991,99691.0,99690.0,0.00093728]
[1746694948877,0.2224245,99691.0,99690.0,0.00093728]
[1746694949083,0.2224245,99691.0,99690.0,0.00548819]
[1746694949287,0.2224245,99691.0,99690.0,0.00093728]
[1746694949968,0.20361991,99691.0,99690.0,0.00093728]
[1746694951394,0.20361991,99691.0,99690.0,0.04793042]
[1746694952900,0.20161991,99691.0,99690.0,0.04793042]
[1746694953641,0.20161991,99691.0,99690.0,0.00093728]
[1746694954705,0.003,99691.0,99690.0,0.00093728]
[1746694954916,0.003,99691.0,99690.0,0.0372068]
[1746694955120,0.003,99691.0,99690.0,0.03921272]
[1746694956283,0.003,99691.0,99690.0,0.57983464]
[1746694956528,0.003,99691.0,99690.0,5.57782872]
[1746694956684,0.003,99691.0,99690.0,10.62782872]
[1746694956896,0.003,99691.0,99690.0,9.56653772]
[1746694957579,0.003,99691.0,99690.0,8.61913772]
[1746694957864,0.003,99691.0,99690.0,7.55524672]
[1746694958132,0.003,99691.0,99690.0,7.52264672]
[1746694958341,0.003,99691.0,99690.0,3.67616272]
[1746694958544,0.003,99691.0,99690.0,3.3986608]
[1746694958707,0.003,99691.0,99690.0,1.9747208]
[1746694959095,0.003,99691.0,99690.0,1.8893958]
[1746694959643,0.003,99691.0,99690.0,0.3455068]
[1746694959955,0.003,99691.0,99690.0,1.9114798]
[1746694960721,0.003,99691.0,99690.0,2.3114798]
[1746694966759,0.003,99691.0,99690.0,2.3114798]
[1746694967452,0.003,99691.0,99690.0,1.1199378]
[1746694967827,0.003,99691.0,99690.0,0.7799378]
[1746694968027,0.0347,99691.0,99690.0,0.0055068]
[1746694968227,0.0347,99691.0,99690.0,0.00093728]
[1746694968688,0.05349959,99691.0,99690.0,0.00093728]
[1746694969631,0.0347,99691.0,99690.0,0.00093728]
[1746694971424,0.0347,99691.0,99690.0,0.04829858]
[1746694973484,0.03454953,99691.0,99690.0,0.04829858]
[1746694974027,0.2106633,99686.0,99682.0,0.4100319]
[1746694974251,0.2106633,99686.0,99683.0,0.66825016]
[1746694974455,0.01003159,99685.0,99683.0,0.00465916]
[1746694975172,0.0161,99684.0,99681.0,0.01103073]
[1746694975370,0.0161,99684.0,99681.0,0.21167076]
[1746694976424,0.01003159,99685.0,99681.0,0.21167076]
[1746694976639,0.0100321,99680.0,99675.0,0.0120326]
[1746694976852,0.0159,99682.0,99679.0,0.20064406]
[1746694977017,0.0159,99682.0,99678.0,0.0100323]
[1746694977018,0.0100318,99683.0,99678.0,0.0100323]
[1746694977191,0.0110317,99684.0,99680.0,0.0100321]
[1746694977417,0.0110317,99684.0,99680.0,0.01103089]
[1746694977620,0.001,99684.0,99682.0,0.20063802]
[1746694977816,0.001,99684.0,99683.0,0.00099865]
[1746694978604,0.01003129,99688.0,99685.0,0.01003159]
[1746694978846,0.01003129,99688.0,99686.0,0.00099851]
[1746694979019,0.21065416,99690.0,99686.0,0.00099851]
[1746694979164,0.01003119,99689.0,99686.0,0.00099851]
[1746694979363,0.01003129,99688.0,99683.0,0.01103031]
[1746694979596,0.01003129,99688.0,99684.0,0.0100317]
[1746694979815,0.01003129,99688.0,99685.0,0.00099851]
[1746694980211,0.21065728,99688.0,99685.0,0.00099851]
[1746694980589,0.01003139,99687.0,99684.0,0.00099856]
[1746694980806,0.01003139,99687.0,99686.0,0.0046748]
[1746694981015,0.01003139,99687.0,99685.0,0.00467282]
[1746694981370,0.01003139,99687.0,99686.0,0.0046748]
[1746694981923,0.01203139,99687.0,99686.0,0.0046748]
[1746694982539,0.01303139,99687.0,99686.0,0.0046748]
[1746694982779,0.01303139,99687.0,99684.0,0.00099857]
[1746694982963,0.01003149,99686.0,99682.0,0.01103047]
[1746694983858,0.01003159,99685.0,99682.0,0.00099857]
[1746694984248,0.01003149,99686.0,99682.0,0.00099857]
[1746694984513,0.01003149,99686.0,99682.0,0.01103047]
[1746694985275,0.001,99685.0,99682.0,0.01103047]